fUSD/lending_fUSD_20240907
["ID","MTS","AMOUNT","RATE_DAILY","PERIOD"]
[337490977,1725699060036,-500.0,0.00014794,2]
[337490978,1725699060046,-500.0,0.00014794,2]
[337490979,1725699060056,-258.30392237,0.00014794,2]
[337490980,1725699060066,-1070.6,0.00014794,2]
[337490981,1725699060075,-1070.6,0.00014794,2]
[337490982,1725699060085,-1070.6,0.00014794,2]
[337490983,1725699060094,-1070.6,0.00014794,2]
[337490984,1725699060104,-598.14,0.00014794,2]
[337490985,1725699060113,-500.0,0.00014794,2]
[337490986,1725699060123,-1070.6,0.00014794,2]
[337490987,1725699060132,-500.0,0.00014794,2]
[337490988,1725699060141,-1070.6,0.00014794,2]
[337490989,1725699060150,-500.0,0.00014794,2]
[337490990,1725699060160,-1070.6,0.00014794,2]
[337490991,1725699060169,-500.0,0.00014794,2]
[337490992,1725699060179,-1070.6,0.00014794,2]
[337490993,1725699060188,-500.0,0.00014794,2]
[337490994,1725699060198,-1070.6,0.00014794,2]
[337490995,1725699060207,-506.98021846,0.00014794,2]
[337490996,1725699060217,-500.0,0.00014794,2]
[337490997,1725699060227,-500.0,0.00014794,2]
[337490998,1725699060237,-1070.6,0.00014794,2]
[337490999,1725699060246,-500.0,0.00014794,2]
[337491000,1725699060256,-500.0,0.00014794,2]
[337491001,1725699060265,-1070.6,0.00014794,2]
[337491002,1725699060275,-227.4,0.00014794,2]
[337491003,1725699060290,-500.0,0.00014794,2]
[337491004,1725699060301,-588.77,0.00014794,2]
[337491005,1725699060311,-1070.6,0.00014794,2]
[337491006,1725699060322,-500.0,0.00014794,2]
[337491007,1725699060332,-588.77,0.00014794,2]
[337491008,1725699060342,-1070.6,0.00014794,2]
[337491009,1725699060353,-500.0,0.00014794,2]
[337491010,1725699060365,-1070.6,0.00014794,2]
[337491011,1725699060375,-588.77,0.00014794,2]
[337491012,1725699060384,-500.0,0.00014794,2]
[337491013,1725699060394,-1070.6,0.00014794,2]
[337491014,1725699060405,-588.77,0.00014794,2]
[337491015,1725699060416,-1198.85,0.00014794,2]
[337491016,1725699060641,-500.0,0.00014794,2]
[337491017,1725699060651,-500.0,0.00014794,2]
[337491018,1725699060662,-1070.6,0.00014794,2]
[337491019,1725699060672,-588.77,0.00014794,2]
[337491020,1725699060684,-500.0,0.00014794,2]
[337491021,1725699060694,-1198.85,0.00014794,2]
[337491022,1725699060706,-588.77,0.00014794,2]
[337491023,1725699060716,-500.0,0.00014794,2]
[337491024,1725699060728,-1198.85,0.00014794,2]
[337491025,1725699060738,-588.77,0.00014794,2]
[337491026,1725699060748,-500.0,0.00014794,2]
[337491027,1725699060760,-1070.6,0.00014794,2]
[337491028,1725699060769,-1198.85,0.00014794,2]
[337491029,1725699060779,-588.77,0.00014794,2]
[337491030,1725699060790,-500.0,0.00014794,2]
[337491031,1725699060799,-1198.85,0.00014794,2]
[337491032,1725699060811,-1070.6,0.00014794,2]
[337491033,1725699060824,-588.77,0.00014794,2]
[337491034,1725699060835,-1070.6,0.00014794,2]
[337491035,1725699060845,-1198.85,0.00014794,2]
[337491036,1725699060855,-500.0,0.00014794,2]
[337491037,1725699060865,-500.0,0.00014794,2]
[337491038,1725699060875,-588.77,0.00014794,2]
[337491039,1725699060885,-1198.85,0.00014794,2]
[337491040,1725699060895,-1070.6,0.00014794,2]
[337491041,1725699060905,-500.0,0.00014794,2]
[337491042,1725699060915,-500.0,0.00014794,2]
[337491043,1725699060925,-588.77,0.00014794,2]
[337491044,1725699060934,-1198.85,0.00014794,2]
[337491045,1725699060944,-1070.6,0.00014794,2]
[337491046,1725699060954,-500.0,0.00014794,2]
[337491047,1725699060964,-500.0,0.00014794,2]
[337491048,1725699060974,-1198.85,0.00014794,2]
[337491049,1725699060983,-588.77,0.00014794,2]
[337491050,1725699060992,-1070.6,0.00014794,2]
[337491051,1725699061001,-418.71,0.00014794,2]
[337491052,1725699061012,-500.0,0.00014794,2]
[337491053,1725699061022,-1198.85,0.00014794,2]
[337491054,1725699061032,-588.77,0.00014794,2]
[337491055,1725699061041,-617.31791966,0.00014794,2]
[337491056,1725699061051,-1070.6,0.00014794,2]
[337491057,1725699061060,-1198.85,0.00014794,2]
[337491058,1725699061070,-588.77,0.00014794,2]
[337491059,1725699061080,-1070.7665388,0.00014794,2]
[337491060,1725699061089,-1198.85,0.00014794,2]
[337491061,1725699061099,-588.77,0.00014794,2]
[337491062,1725699061109,-1198.85,0.00014794,2]
[337491063,1725699061119,-588.77,0.00014794,2]
[337491064,1725699061128,-1198.85,0.00014794,2]
[337491065,1725699061245,-588.77,0.00014794,2]
[337491066,1725699061255,-1198.85,0.00014794,2]
[337491067,1725699061265,-588.77,0.00014794,2]
[337491068,1725699061275,-1198.85,0.00014794,2]
[337491069,1725699061284,-588.77,0.00014794,2]
[337491070,1725699061294,-1198.85,0.00014794,2]
[337491071,1725699061303,-192.31477219,0.00014794,2]
[337491072,1725699061312,-588.77,0.00014794,2]
[337491073,1725699061321,-1198.85,0.00014794,2]
[337491074,1725699061331,-1198.85,0.00014794,2]
[337491075,1725699061340,-1198.85,0.00014794,2]
[337491076,1725699061349,-588.77,0.00014794,2]
[337491077,1725699061359,-588.77,0.00014794,2]
[337491078,1725699061369,-1198.85,0.00014794,2]
[337491079,1725699061378,-588.77,0.00014794,2]
[337491080,1725699061387,-1198.85,0.00014794,2]
[337491081,1725699061397,-588.95229949,0.00014794,2]
[337491082,1725699061407,-1198.85,0.00014794,2]
[337491083,1725699061417,-1198.96626208,0.00014794,2]
[337491084,1725699061429,-503.10313843,0.00014794,2]
[337491085,1725699061438,-1403.7,0.00014794,2]
[337491086,1725699061448,-1403.7,0.00014794,2]
[337491087,1725699061458,-1403.7,0.00014794,2]
[337491088,1725699061468,-500.0,0.00014794,2]
[337491089,1725699061478,-1403.7,0.00014794,2]
[337491090,1725699061487,-500.0,0.00014794,2]
[337491091,1725699061498,-1403.7,0.00014794,2]
[337491092,1725699061509,-500.0,0.00014794,2]
[337491093,1725699061519,-1403.7,0.00014794,2]
[337491094,1725699061528,-500.0,0.00014794,2]
[337491095,1725699061538,-1403.7,0.00014794,2]
[337491096,1725699061547,-1403.7,0.00014794,2]
[337491097,1725699061559,-500.0,0.00014794,2]
[337491098,1725699061569,-1403.7,0.00014794,2]
[337491099,1725699061578,-500.0,0.00014794,2]
[337491100,1725699061588,-1403.7,0.00014794,2]
[337491101,1725699061597,-1403.7,0.00014794,2]
[337491102,1725699061607,-500.0,0.00014794,2]
[337491103,1725699061616,-1403.7,0.00014794,2]
[337491104,1725699061625,-500.0,0.00014794,2]
[337491105,1725699061635,-1403.7,0.00014794,2]
[337491106,1725699061644,-638.55940274,0.00014794,2]
[337491107,1725699061653,-487.4073427,0.00014794,2]
[337491108,1725699061662,-202.51041942,0.00014794,2]
[337491109,1725699061671,-1403.7,0.00014794,2]
[337491110,1725699061680,-1403.7,0.00014794,2]
[337491111,1725699061690,-1403.7,0.00014794,2]
[337491112,1725699061699,-1403.7,0.00014794,2]
[337491113,1725699061708,-1403.7,0.00014794,2]
[337491114,1725699061717,-1403.7,0.00014794,2]
[337491115,1725699061727,-1403.7,0.00014794,2]
[337491116,1725699061736,-1403.7,0.00014794,2]
[337491117,1725699061745,-1403.7,0.00014794,2]
[337491118,1725699061756,-1403.7,0.00014794,2]
[337491119,1725699061765,-1403.86287272,0.00014794,2]
[337491120,1725699061775,-500.0,0.00014794,2]
[337491121,1725699061784,-500.0,0.00014794,2]
[337491122,1725699061794,-500.0,0.00014794,2]
[337491123,1725699061803,-500.0,0.00014794,2]
[337491124,1725699061812,-500.0,0.00014794,2]
[337491125,1725699061821,-500.0,0.00014794,2]
[337491126,1725699061831,-500.0,0.00014794,2]
[337491127,1725699061840,-500.0,0.00014794,2]
[337491128,1725699061849,-500.0,0.00014794,2]
[337491129,1725699061859,-500.0,0.00014794,2]
[337491130,1725699061868,-500.0,0.00014794,2]
[337491131,1725699061877,-500.0,0.00014794,2]
[337491132,1725699061887,-500.0,0.00014794,2]
[337491133,1725699061896,-500.0,0.00014794,2]
[337491134,1725699061905,-1388.67,0.00014794,2]
[337491135,1725699061914,-500.0,0.00014794,2]
[337491136,1725699061924,-500.0,0.00014794,2]
[337491137,1725699061934,-1388.67,0.00014794,2]
[337491138,1725699061943,-500.0,0.00014794,2]
[337491139,1725699061952,-500.0,0.00014794,2]
[337491140,1725699061962,-1388.67,0.00014794,2]
[337491141,1725699061971,-500.0,0.00014794,2]
[337491142,1725699061981,-508.66233398,0.00014794,2]
[337491143,1725699061990,-500.0,0.00014794,2]
[337491144,1725699062000,-500.0,0.00014794,2]
[337491145,1725699062011,-1388.67,0.00014794,2]
[337491146,1725699062022,-500.0,0.00014794,2]
[337491147,1725699062031,-500.0,0.00014794,2]
[337491148,1725699062050,-1388.67,0.00014794,2]
[337491149,1725699062068,-500.0,0.00014794,2]
[337491150,1725699062083,-1388.67,0.00014794,2]
[337491151,1725699062099,-500.0,0.00014794,2]
[337491152,1725699062116,-1372.08,0.00014794,2]
[337491153,1725699062134,-500.0,0.00014794,2]
[337491154,1725699062150,-1388.67,0.00014794,2]
[337491155,1725699062165,-243.57366575,0.00014794,2]
[337491156,1725699062182,-1372.08,0.00014794,2]
[337491157,1725699062195,-500.0,0.00014794,2]
[337491158,1725699062208,-1388.67,0.00014794,2]
[337491159,1725699062224,-1372.08,0.00014794,2]
[337491160,1725699062240,-500.0,0.00014794,2]
[337491161,1725699062258,-1388.67,0.00014794,2]
[337491162,1725699062271,-1372.08,0.00014794,2]
[337491163,1725699062282,-500.0,0.00014794,2]
[337491164,1725699062297,-1388.67,0.00014794,2]
[337491165,1725699062312,-1372.08,0.00014794,2]
[337491166,1725699062327,-500.0,0.00014794,2]
[337491167,1725699062343,-1388.67,0.00014794,2]
[337491168,1725699062355,-1372.08,0.00014794,2]
[337491169,1725699062372,-500.0,0.00014794,2]
[337491170,1725699062386,-1388.67,0.00014794,2]
[337491171,1725699062401,-500.0,0.00014794,2]
[337491172,1725699062415,-1388.67,0.00014794,2]
[337491173,1725699062432,-500.0,0.00014794,2]
[337491174,1725699062447,-1388.67,0.00014794,2]
[337491175,1725699062460,-983.56,0.00014794,2]
[337491176,1725699062475,-1372.08,0.00014794,2]
[337491177,1725699062490,-599.93065135,0.00014794,2]
[337491178,1725699062506,-500.0,0.00014794,2]
[337491179,1725699062520,-983.56,0.00014794,2]
[337491180,1725699062533,-1388.67,0.00014794,2]
[337491181,1725699062546,-1372.08,0.00014794,2]
[337491182,1725699062559,-500.0,0.00014794,2]
[337491183,1725699062571,-1388.67,0.00014794,2]
[337491184,1725699062586,-983.56,0.00014794,2]
[337491185,1725699062600,-1372.08,0.00014794,2]
[337491186,1725699062613,-500.0,0.00014794,2]
[337491187,1725699062627,-983.56,0.00014794,2]
[337491188,1725699062642,-1388.67,0.00014794,2]
[337491189,1725699062655,-1372.08,0.00014794,2]
[337491190,1725699062668,-201.92,0.00014794,2]
[337491191,1725699062681,-1335.83,0.00014794,2]
[337491192,1725699062696,-983.56,0.00014794,2]
[337491193,1725699062709,-1388.67,0.00014794,2]
[337491194,1725699062723,-1372.08,0.00014794,2]
[337491195,1725699062738,-983.56,0.00014794,2]
[337491196,1725699062754,-1388.67,0.00014794,2]
[337491197,1725699062768,-1335.83,0.00014794,2]
[337491198,1725699062782,-1372.08,0.00014794,2]
[337491199,1725699062796,-983.56,0.00014794,2]
[337491200,1725699062811,-1372.08,0.00014794,2]
[337491201,1725699062825,-1388.67,0.00014794,2]
[337491202,1725699062839,-983.56,0.00014794,2]
[337491203,1725699062853,-1372.08,0.00014794,2]
[337491204,1725699062867,-1335.83,0.00014794,2]
[337491205,1725699062882,-1388.67,0.00014794,2]
[337491206,1725699062896,-500.0,0.00014794,2]
[337491207,1725699062910,-983.56,0.00014794,2]
[337491208,1725699062923,-1372.08,0.00014794,2]
[337491209,1725699062937,-1335.83,0.00014794,2]
[337491210,1725699062951,-1388.67,0.00014794,2]
[337491211,1725699062965,-500.0,0.00014794,2]
[337491212,1725699062978,-983.56,0.00014794,2]
[337491213,1725699062994,-1372.08,0.00014794,2]
[337491214,1725699063007,-1335.83,0.00014794,2]
[337491215,1725699063021,-1388.67,0.00014794,2]
[337491216,1725699063035,-500.0,0.00014794,2]
[337491217,1725699063049,-983.56,0.00014794,2]
[337491218,1725699063062,-1372.08,0.00014794,2]
[337491219,1725699063079,-1335.83,0.00014794,2]
[337491220,1725699063094,-1388.78443311,0.00014794,2]
[337491221,1725699063108,-500.0,0.00014794,2]
[337491222,1725699063123,-983.56,0.00014794,2]
[337491223,1725699063133,-1372.08,0.00014794,2]
[337491224,1725699063142,-508.28,0.00014794,2]
[337491225,1725699063151,-1335.83,0.00014794,2]
[337491226,1725699063161,-983.56,0.00014794,2]
[337491227,1725699063170,-500.0,0.00014794,2]
[337491228,1725699063180,-1372.08,0.00014794,2]
[337491229,1725699063189,-508.28,0.00014794,2]
[337491230,1725699063389,-1335.83,0.00014794,2]
[337491231,1725699063416,-983.56,0.00014794,2]
[337491232,1725699063429,-508.28,0.00014794,2]
[337491233,1725699063439,-983.56,0.00014794,2]
[337491234,1725699063449,-1335.83,0.00014794,2]
[337491235,1725699063459,-500.0,0.00014794,2]
[337491236,1725699063468,-508.28,0.00014794,2]
[337491237,1725699063478,-1372.08,0.00014794,2]
[337491238,1725699063487,-983.56,0.00014794,2]
[337491239,1725699063496,-1335.83,0.00014794,2]
[337491240,1725699063508,-508.28,0.00014794,2]
[337491241,1725699063519,-170.94301082,0.00014794,2]
[337491242,1725699063528,-1335.83,0.00014794,2]
[337491243,1725699063538,-983.56,0.00014794,2]
[337491244,1725699063558,-1372.08,0.00014794,2]
[337491245,1725699063568,-508.28,0.00014794,2]
[337491246,1725699063578,-983.56,0.00014794,2]
[337491247,1725699063588,-1335.83,0.00014794,2]
[337491248,1725699063597,-1372.08,0.00014794,2]
[337491249,1725699063607,-508.28,0.00014794,2]
[337491250,1725699063618,-983.56,0.00014794,2]
[337491251,1725699063627,-648.86901397,0.00014794,2]
[337491252,1725699064157,-686.96098603,0.00014794,2]
[337491253,1725699064166,-55.99955633,0.00014794,2]
[337491254,1725699064179,-289.28172372,0.00014794,2]
[337491255,1725699064191,-1026.79871995,0.00014794,2]
[337491256,1725699064201,-508.28,0.00014794,2]
[337491257,1725699064211,-983.56,0.00014794,2]
[337491258,1725699064220,-627.28751718,0.00014794,2]
[337491259,1725699064232,-744.89718626,0.00014794,2]
[337491260,1725699064242,-1335.83,0.00014794,2]
[337491261,1725699064251,-508.28,0.00014794,2]
[337491262,1725699064262,-983.56,0.00014794,2]
[337491263,1725699064271,-1335.83,0.00014794,2]
[337491264,1725699064281,-508.28,0.00014794,2]
[337491265,1725699064290,-983.56,0.00014794,2]
[337491266,1725699064299,-1335.83,0.00014794,2]
[337491267,1725699064309,-500.0,0.00014794,2]
[337491268,1725699064318,-508.28,0.00014794,2]
[337491269,1725699064327,-983.56,0.00014794,2]
[337491270,1725699064337,-1335.83,0.00014794,2]
[337491271,1725699064347,-500.0,0.00014794,2]
[337491272,1725699064357,-508.28,0.00014794,2]
[337491273,1725699064366,-500.0,0.00014794,2]
[337491274,1725699064376,-983.67719348,0.00014794,2]
[337491275,1725699064386,-1335.83,0.00014794,2]
[337491276,1725699064396,-500.0,0.00014794,2]
[337491277,1725699064406,-505.32223596,0.00014794,2]
[337491278,1725699064420,-2.95776404,0.00014794,2]
[337491279,1725699064432,-569.17921244,0.00014794,2]
[337491280,1725699064442,-1335.83,0.00014794,2]
[337491281,1725699064452,-500.0,0.00014794,2]
[337491282,1725699064462,-508.28,0.00014794,2]
[337491283,1725699064472,-1335.83,0.00014794,2]
[337491284,1725699064482,-500.0,0.00014794,2]
[337491285,1725699064492,-508.28,0.00014794,2]
[337491286,1725699064501,-1335.83,0.00014794,2]
[337491287,1725699064512,-500.0,0.00014794,2]
[337491288,1725699064521,-508.28,0.00014794,2]
[337491289,1725699064530,-1069.40178136,0.00014794,2]
[337491290,1725699064548,-266.42821864,0.00014794,2]
[337491291,1725699064558,-508.28,0.00014794,2]
[337491292,1725699064567,-508.28,0.00014794,2]
[337491293,1725699064577,-500.0,0.00014794,2]
[337491294,1725699064586,-508.28,0.00014794,2]
[337491295,1725699064596,-500.0,0.00014794,2]
[337491296,1725699064605,-1335.83,0.00014794,2]
[337491297,1725699064615,-1541.8,0.00014794,2]
[337491298,1725699064624,-45.95965261,0.00014794,2]
[337491299,1725699064833,-454.04034739,0.00014794,2]
[337491300,1725699064843,-508.28,0.00014794,2]
[337491301,1725699064853,-500.0,0.00014794,2]
[337491302,1725699064862,-1335.8975944,0.00014794,2]
[337491303,1725699064872,-1622.52,0.00014794,2]
[337491304,1725699064882,-1541.8,0.00014794,2]
[337491305,1725699064892,-500.0,0.00014794,2]
[337491306,1725699064901,-508.28,0.00014794,2]
[337491307,1725699064911,-1541.8,0.00014794,2]
[337491308,1725699064920,-1622.52,0.00014794,2]
[337491309,1725699064929,-500.0,0.00014794,2]
[337491310,1725699064939,-500.0,0.00014794,2]
[337491311,1725699064948,-508.28,0.00014794,2]
[337491312,1725699064958,-1541.8,0.00014794,2]
[337491313,1725699064967,-1622.52,0.00014794,2]
[337491314,1725699064976,-500.0,0.00014794,2]
[337491315,1725699064985,-500.0,0.00014794,2]
[337491316,1725699064994,-1541.8,0.00014794,2]
[337491317,1725699065003,-508.28,0.00014794,2]
[337491318,1725699065016,-500.0,0.00014794,2]
[337491319,1725699065025,-1622.52,0.00014794,2]
[337491320,1725699065034,-500.0,0.00014794,2]
[337491321,1725699065043,-1541.8,0.00014794,2]
[337491322,1725699065053,-508.35105332,0.00014794,2]
[337491323,1725699065062,-500.0,0.00014794,2]
[337491324,1725699065071,-1622.52,0.00014794,2]
[337491325,1725699065081,-470.51674391,0.00014794,2]
[337491326,1725699065090,-1541.8,0.00014794,2]
[337491327,1725699065099,-500.0,0.00014794,2]
[337491328,1725699065108,-1622.52,0.00014794,2]
[337491329,1725699065117,-1541.8,0.00014794,2]
[337491330,1725699065126,-500.0,0.00014794,2]
[337491331,1725699065135,-1622.52,0.00014794,2]
[337491332,1725699065145,-1541.8,0.00014794,2]
[337491333,1725699065153,-500.0,0.00014794,2]
[337491334,1725699065162,-1622.52,0.00014794,2]
[337491335,1725699065172,-1541.8,0.00014794,2]
[337491336,1725699065182,-500.0,0.00014794,2]
[337491337,1725699065191,-1622.52,0.00014794,2]
[337491338,1725699065201,-1541.8,0.00014794,2]
[337491339,1725699065210,-500.0,0.00014794,2]
[337491340,1725699065219,-1622.52,0.00014794,2]
[337491341,1725699065228,-1541.8,0.00014794,2]
[337491342,1725699065237,-500.0,0.00014794,2]
[337491343,1725699065246,-1622.52,0.00014794,2]
[337491344,1725699065255,-500.0,0.00014794,2]
[337491345,1725699065265,-1541.8,0.00014794,2]
[337491346,1725699065274,-1622.52,0.00014794,2]
[337491347,1725699065283,-500.0,0.00014794,2]
[337491348,1725699065292,-1541.8,0.00014794,2]
[337491349,1725699065301,-1622.52,0.00014794,2]
[337491350,1725699065310,-500.0,0.00014794,2]
[337491351,1725699065319,-125.28590494,0.00014794,2]
[337491352,1725699179490,445.7,0.00010898,2]
[337491353,1725699289696,562.62,0.00010959,2]
[337491354,1725699421050,1000.0,0.00011,2]
[337491355,1725699783112,423.41,0.00010794,2]
[337491356,1725699968250,203.32,0.00010959,2]
[337491414,1725700231731,-1083.8419,0.000124,2]
[337491415,1725700231742,-250.0,0.00012653,2]
[337491416,1725700231751,-300.0,0.00012666,2]
[337491417,1725700231760,-385.18762842,0.00012667,2]
[337491418,1725700231789,-735.02,0.00012667,2]
[337491419,1725700231801,-1366.00042613,0.00012667,2]
[337491420,1725700231850,-500.0,0.00012667,2]
[337491421,1725700231861,-304.36121519,0.00012667,2]
[337491422,1725700231906,-2944.32227028,0.00012667,2]
[337491423,1725700231965,-991.0,0.00012667,2]
[337491432,1725700237816,-559.02618726,0.00012667,2]
[337491433,1725700237828,-794.86802,0.00012667,2]
[337491434,1725700237963,-2123.8997036,0.00012667,2]
[337491435,1725700238043,-2664.19888881,0.00012667,2]
[337491436,1725700238055,-519.07829482,0.00012667,2]
[337491437,1725700238100,-500.0,0.00012667,2]
[337491438,1725700238159,-7279.41342549,0.00012667,2]
[337491440,1725700238171,-9786.6181317,0.00012667,2]
[337491635,1725700240199,-545.74,0.00012667,2]
[337491637,1725700240211,-307.85040097,0.00012667,2]
[337491757,1725700242738,-767.14366818,0.00012667,2]
[337491759,1725700242749,-589.37436581,0.00012667,2]
[337491762,1725700242789,-4683.61921017,0.00012667,2]
[337491763,1725700242800,-605.70812265,0.00012667,2]
[337491764,1725700242811,-4202.89669979,0.00012667,2]
[337491765,1725700242903,-3455.53409534,0.00012667,2]
[337491766,1725700242915,-2754.31674355,0.00012667,2]
[337491767,1725700242960,-471.44131326,0.00012667,2]
[337491768,1725700242975,-671.32315737,0.00012667,2]
[337491774,1725700243379,-2005.80185951,0.00012667,2]
[337491775,1725700243391,-47486.2561717,0.00012667,2]
[337491776,1725700243401,-10323.99860872,0.00012673,2]
[337491777,1725700243410,-683.68279249,0.00012673,2]
[337491778,1725700243420,-200.0,0.00012688,2]
[337491779,1725700243430,-400.0,0.00012697,2]
[337491780,1725700243440,-231.14,0.00012706,2]
[337491781,1725700243450,-250.0,0.00012709,2]
[337491782,1725700243459,-250.0,0.00012712,2]
[337491783,1725700243469,-213.32,0.00012772,2]
[337491784,1725700243479,-4942.09,0.00012773,2]
[337491785,1725700243489,-499.99,0.00012773,2]
[337491786,1725700243498,-36918.0428,0.00012773,2]
[337491787,1725700243508,-38942.5953,0.00012773,2]
[337491788,1725700243518,-1000.0,0.00012773,2]
[337491789,1725700243527,-500.0,0.000128,2]
[337491790,1725700243537,-600.0,0.00012816,2]
[337491791,1725700243547,-683.68279246,0.0001292,2]
[337491792,1725700243556,-500.0,0.00013014,2]
[337491793,1725700243566,-423.41,0.00013058,2]
[337491794,1725700243576,-683.68279246,0.00013168,2]
[337491795,1725700243585,-500.0,0.00013317,2]
[337491796,1725700243595,-500.0,0.00013326,2]
[337491797,1725700243605,-500.0,0.00013335,2]
[337491798,1725700243614,-500.0,0.00013344,2]
[337491799,1725700243624,-500.0,0.00013352,2]
[337491800,1725700243634,-500.0,0.00013361,2]
[337491801,1725700243643,-500.0,0.0001337,2]
[337491802,1725700243653,-500.0,0.00013379,2]
[337491803,1725700243663,-500.0,0.00013388,2]
[337491804,1725700243673,-500.0,0.00013396,2]
[337491805,1725700243682,-500.0,0.00013405,2]
[337491806,1725700243692,-500.0,0.00013414,2]
[337491807,1725700243701,-683.68279246,0.00013415,2]
[337491808,1725700243711,-500.0,0.00013423,2]
[337491809,1725700243720,-500.0,0.00013432,2]
[337491810,1725700243730,-500.0,0.0001344,2]
[337491811,1725700243740,-500.0,0.00013449,2]
[337491812,1725700243750,-500.0,0.00013458,2]
[337491813,1725700243759,-500.0,0.00013467,2]
[337491814,1725700243774,-500.0,0.00013476,2]
[337491815,1725700243785,-500.0,0.00013484,2]
[337491816,1725700243794,-500.0,0.00013493,2]
[337491817,1725700243804,-500.0,0.00013502,2]
[337491818,1725700243815,-500.0,0.00013511,2]
[337491819,1725700243824,-500.0,0.0001352,2]
[337491820,1725700243834,-500.0,0.00013528,2]
[337491821,1725700243844,-500.0,0.00013537,2]
[337491822,1725700243855,-155.76,0.00013628,2]
[337491823,1725700243864,-155.76,0.00013632,2]
[337491824,1725700243874,-155.76,0.00013636,2]
[337491825,1725700243883,-155.76,0.0001364,2]
[337491826,1725700243893,-155.76,0.00013644,2]
[337491827,1725700243903,-155.76,0.00013647,2]
[337491828,1725700243914,-155.76,0.00013651,2]
[337491829,1725700243932,-155.76,0.00013655,2]
[337491830,1725700243946,-155.76,0.00013659,2]
[337491831,1725700243960,-155.76,0.00013662,2]
[337491832,1725700243974,-683.68279246,0.00013663,2]
[337491833,1725700243987,-155.76,0.00013666,2]
[337491834,1725700243998,-155.76,0.0001367,2]
[337491835,1725700244009,-155.76,0.00013674,2]
[337491836,1725700244020,-155.76,0.00013678,2]
[337491837,1725700244033,-155.76,0.00013681,2]
[337491838,1725700244045,-155.76,0.00013685,2]
[337491839,1725700244057,-155.76,0.00013689,2]
[337491840,1725700244069,-155.76,0.00013693,2]
[337491841,1725700244082,-155.76,0.00013696,2]
[337491842,1725700244095,-150.0,0.00013699,2]
[337491843,1725700244107,-420.0,0.00013895,2]
[337491844,1725700244120,-683.68279246,0.0001391,2]
[337491845,1725700244132,-150.0,0.00014059,2]
[337491846,1725700244144,-158.49,0.00014069,2]
[337491847,1725700244157,-683.68279246,0.00014158,2]
[337491848,1725700244169,-400.0,0.00014285,2]
[337491849,1725700244180,-213.32,0.00014368,2]
[337491850,1725700244192,-683.68279246,0.00014405,2]
[337491851,1725700244207,-600.0,0.00014418,2]
[337491852,1725700244220,-150.0,0.0001442,2]
[337491853,1725700244233,-220.321111,0.00014521,2]
[337491854,1725700244245,-281.20244775,0.0001455,2]
[337491855,1725700244257,-7500.0,0.0001455,2]
[337491856,1725700244269,-281.20244773,0.000146,2]
[337491857,1725700244281,-1037.38733572,0.0001464,3]
[337491858,1725700244292,-568.23068717,0.00014649,2]
[337491859,1725700244302,-500.88433714,0.00014649,2]
[337491860,1725700244312,-359.31463052,0.00014649,2]
[337491861,1725700244324,-185123.72576949,0.0001465,2]
[337491862,1725700244335,-500.0,0.0001465,2]
[337491863,1725700244346,-281.20244773,0.0001465,2]
[337491864,1725700244357,-683.68279246,0.00014653,2]